fUST/lending_fUST_20260515
["ID","MTS","AMOUNT","RATE_DAILY","PERIOD"]
[422336231,1778842243000,-500.0,0.00010958,2]
[422336232,1778842243000,-317.50228618,0.00010958,2]
[422336234,1778842243000,-500.0,0.00010958,2]
[422336233,1778842243000,-500.0,0.00010958,2]
[422336242,1778842243000,-500.0,0.00010958,2]
[422336240,1778842243000,-500.0,0.00010958,2]
[422336237,1778842243000,-604.25,0.00010958,2]
[422336239,1778842243000,-500.0,0.00010958,2]
[422336218,1778842243000,-500.0,0.00010958,2]
[422336228,1778842243000,-509.05,0.00010958,2]
[422336238,1778842243000,-500.0,0.00010958,2]
[422336222,1778842243000,-1216.08,0.00010958,2]
[422336225,1778842243000,-2047.12,0.00010958,2]
[422336224,1778842243000,-547.28724985,0.00010958,2]
[422336221,1778842243000,-1601.99,0.00010958,2]
[422336223,1778842243000,-500.0,0.00010958,2]
[422336220,1778842243000,-500.0,0.00010958,2]
[422336219,1778842243000,-791.21,0.00010958,2]
[422336226,1778842243000,-500.0,0.00010958,2]
[422336216,1778842243000,-67.50921025,0.00010958,2]
[422336217,1778842243000,-214.35894543,0.00010958,2]
[422336215,1778842243000,-5000.0,0.00010847,2]
[422336227,1778842243000,-500.0,0.00010958,2]
[422336254,1778842243000,-500.0,0.00010958,2]
[422336273,1778842243000,-500.0,0.00010958,2]
[422336244,1778842243000,-644.0,0.00010958,2]
[422336276,1778842243000,-547.05864339,0.00010958,2]
[422336275,1778842243000,-2018.93,0.00010958,2]
[422336272,1778842243000,-500.0,0.00010958,2]
[422336269,1778842243000,-500.0,0.00010958,2]
[422336271,1778842243000,-500.0,0.00010958,2]
[422336241,1778842243000,-712.53,0.00010958,2]
[422336268,1778842243000,-500.0,0.00010958,2]
[422336264,1778842243000,-500.0,0.00010958,2]
[422336263,1778842243000,-668.45,0.00010958,2]
[422336265,1778842243000,-707.27,0.00010958,2]
[422336261,1778842243000,-1999.46,0.00010958,2]
[422336259,1778842243000,-2822.1461,0.00010958,2]
[422336262,1778842243000,-717.02,0.00010958,2]
[422336270,1778842243000,-500.0,0.00010958,2]
[422336266,1778842243000,-500.0,0.00010958,2]
[422336255,1778842243000,-888.32,0.00010958,2]
[422336246,1778842243000,-500.0,0.00010958,2]
[422336243,1778842243000,-628.3,0.00010958,2]
[422336249,1778842243000,-1827.88,0.00010958,2]
[422336247,1778842243000,-633.7,0.00010958,2]
[422336245,1778842243000,-813.59,0.00010958,2]
[422336274,1778842243000,-500.0,0.00010958,2]
[422336251,1778842243000,-554.6450126,0.00010958,2]
[422336256,1778842243000,-500.0,0.00010958,2]
[422336257,1778842243000,-1017.44,0.00010958,2]
[422336267,1778842243000,-500.0,0.00010958,2]
[422336260,1778842243000,-500.0,0.00010958,2]
[422336258,1778842243000,-500.0,0.00010958,2]
[422336248,1778842243000,-804.56477144,0.00010958,2]
[422336279,1778842246000,-500.0,0.00010958,2]
[422336278,1778842246000,-423.07135661,0.00010958,2]
[422336280,1778842246000,-500.0,0.00010958,2]
[422336281,1778842246000,-2586.96,0.00010958,2]
[422336282,1778842246000,-500.0,0.00010958,2]
[422336284,1778842246000,-500.0,0.00010958,2]
[422336287,1778842246000,-160.83341663,0.00010958,2]
[422336288,1778842246000,-500.0,0.00010958,2]
[422336285,1778842246000,-500.0,0.00010958,2]
[422336283,1778842246000,-443.00873662,0.00010958,2]
[422336290,1778842246000,-289.24790746,0.00010958,2]
[422336286,1778842246000,-339.16658337,0.00010958,2]
[422336289,1778842246000,-500.0,0.00010958,2]
[422336294,1778842647000,5000.0,5e-05,2]
[422336295,1778842669000,5000.0,5e-05,2]
[422336296,1778842692000,5000.0,5e-05,2]
[422336297,1778842714000,4954.09162168,5e-05,2]
[422336302,1778842835000,-165.848715,5.026e-05,2]
[422336303,1778842853000,-335.31526684,5.429e-05,2]
[422336304,1778842871000,-165.848715,5.831e-05,2]
[422336305,1778842889000,-165.848715,6.636e-05,2]
[422336306,1778842907000,-395.67201487,7.429e-05,2]
[422336307,1778842925000,-165.848715,7.441e-05,2]
[422336308,1778842942000,-165.848715,8.246e-05,2]
[422336309,1778842960000,-165.848715,9.05e-05,2]
[422336311,1778842977000,-456.0287629,9.429e-05,2]
[422336314,1778843185000,2025.69771661,0.00012,120]
[422336338,1778843431000,-320.6955212,8.728e-05,2]
[422336340,1778843431000,-106.50809671,9.855e-05,2]
[422336332,1778843431000,-1117.43519046,7.6e-05,2]
[422336343,1778843431000,-59.34061829,9.855e-05,2]
[422336349,1778843431000,-300.0,9.999e-05,2]
[422336334,1778843431000,-714.58733703,7.6e-05,2]
[422336345,1778843431000,-300.0,9.999e-05,2]
[422336351,1778843431000,-203.92174922,9.999e-05,2]
[422336347,1778843431000,-300.0,9.999e-05,2]
[422336336,1778843431000,-431.91628608,7.6e-05,2]
[422336420,1778843438000,-5675.56544906,0.0001,2]
[422336412,1778843438000,-1200.0,9.999e-05,2]
[422336411,1778843438000,-96.07825078,9.999e-05,2]
[422336426,1778843438000,-990.72703622,0.0001,2]
[422336413,1778843438000,-2000.34655037,0.0001,3]
[422336415,1778843438000,-48545.81384875,0.0001,2]
[422336424,1778843438000,-3528.57304545,0.0001,2]
[422336422,1778843438000,-62733.97396018,0.0001,2]
[422336526,1778843440000,-2243.08747746,0.0001,2]
[422336524,1778843440000,-7457.91225139,0.0001,2]
[422336525,1778843440000,-1681.07462552,0.0001,2]
[422336522,1778843440000,-314.28161078,0.0001,2]
[422336523,1778843440000,-27.16245264,0.0001,2]
[422336539,1778843443000,-3335.2306,0.00010958,2]
[422336531,1778843443000,-10902.8473326,0.0001,2]
[422336529,1778843443000,-454.96465952,0.0001,2]
[422336532,1778843443000,-185.0,0.00010436,2]
[422336538,1778843443000,-239.748,0.00010957,2]
[422336530,1778843443000,-1496.19744724,0.0001,2]
[422336540,1778843443000,-1916.15,0.00010958,2]
[422336535,1778843443000,-161.65638237,0.00010837,2]
[422336536,1778843443000,-160.0,0.0001095,2]
[422336537,1778843443000,-500.0,0.00010951,2]
[422336534,1778843443000,-160.0,0.00010837,2]
[422336541,1778843443000,-467.49934395,0.00010958,2]
[422336544,1778843443000,-500.0,0.00010958,2]
[422336543,1778843443000,-500.0,0.00010958,2]
[422336542,1778843443000,-210.30065605,0.00010958,2]
[422336545,1778843443000,-294.04954395,0.00010958,2]
[422336533,1778843443000,-443.0,0.00010436,2]
[422336555,1778843446000,-500.0,0.00010958,2]
[422336554,1778843446000,-205.95045605,0.00010958,2]
[422336556,1778843446000,-500.0,0.00010958,2]
[422336557,1778843446000,-1307.3,0.00010958,2]
[422336558,1778843446000,-1307.3,0.00010958,2]
[422336560,1778843446000,-1307.3,0.00010958,2]
[422336561,1778843446000,-71.86946617,0.00010958,2]
[422336562,1778843446000,-1235.43053383,0.00010958,2]
[422336566,1778843446000,-24.18999716,0.00010958,2]
[422336563,1778843446000,-1307.3,0.00010958,2]
[422336564,1778843446000,-1307.3,0.00010958,2]
[422336565,1778843446000,-1307.3,0.00010958,2]
[422336559,1778843446000,-1307.3,0.00010958,2]
[422336578,1778844116000,167.2730597,4.983e-05,2]
[422336592,1778844632000,-888.34205459,9.572e-05,2]
[422336602,1778844640000,-641.0,0.0001,2]
[422336605,1778844640000,-160.0,0.00010583,2]
[422336601,1778844640000,-307.99597856,9.842e-05,2]
[422336606,1778844640000,-443.0,0.00010589,2]
[422336607,1778844640000,-185.0,0.00010589,2]
[422336604,1778844640000,-160.0,0.00010583,2]
[422336608,1778844640000,-196.23997966,0.00010951,2]
[422336603,1778844640000,-161.65638237,0.00010269,2]
[422337183,1778844646000,-151.0,0.00010951,2]
[422337188,1778844646000,-500.0,0.00010951,2]
[422337185,1778844646000,-537.6845,0.00010951,2]
[422337179,1778844646000,-341.44452034,0.00010951,2]
[422337181,1778844646000,-162.380719,0.00010951,2]
[422337190,1778844646000,-128.75474517,0.00010951,2]
[422337219,1778844646000,-191.798,0.00010957,2]
[422337229,1778844646000,-871.42847448,0.00010957,2]
[422337218,1778844646000,-22.7857231,0.00010951,2]
[422337223,1778844646000,-311.35929314,0.00010957,2]
[422337225,1778844646000,-300.86555052,0.00010957,2]
[422337235,1778844646000,-241.70682421,0.00010957,2]
[422337231,1778844646000,-871.42847448,0.00010957,2]
[422337228,1778844646000,-583.85094998,0.00010957,2]
[422337234,1778844646000,-871.42847448,0.00010957,2]
[422337221,1778844646000,-500.0,0.00010957,2]
[422337829,1778845832000,-605.52935036,8.635e-05,2]
[422337828,1778845832000,-976.25152329,8.635e-05,2]
[422337833,1778845838000,-301.83605899,8.722e-05,2]
[422337836,1778845838000,-300.0,8.766e-05,2]
[422337835,1778845838000,-300.0,8.766e-05,2]
[422337837,1778845838000,-300.0,8.766e-05,2]
[422337834,1778845838000,-300.0,8.766e-05,2]
[422337838,1778845838000,-300.0,8.766e-05,2]
[422337864,1778845839000,-160.0,0.00010837,2]
[422337865,1778845839000,-18921.68248043,0.00010852,2]
[422337889,1778845839000,-885.0119796,0.00010957,2]
[422337869,1778845839000,-5230.0,0.00010956,2]
[422337868,1778845839000,-537.6845,0.00010951,2]
[422337871,1778845839000,-842.868552,0.00010957,2]
[422337870,1778845839000,-210.60588536,0.00010957,2]
[422337872,1778845839000,-842.868552,0.00010957,2]
[422337876,1778845839000,-842.868552,0.00010957,2]
[422337879,1778845839000,-842.868552,0.00010957,2]
[422337882,1778845839000,-842.868552,0.00010957,2]
[422337873,1778845839000,-842.868552,0.00010957,2]
[422337875,1778845839000,-842.868552,0.00010957,2]
[422337877,1778845839000,-842.868552,0.00010957,2]
[422337878,1778845839000,-842.868552,0.00010957,2]
[422337881,1778845839000,-842.868552,0.00010957,2]
[422337880,1778845839000,-842.868552,0.00010957,2]
[422337860,1778845839000,-160.0,0.00010739,2]
[422337883,1778845839000,-842.868552,0.00010957,2]
[422337886,1778845839000,-842.868552,0.00010957,2]
[422337884,1778845839000,-842.868552,0.00010957,2]
[422337885,1778845839000,-842.868552,0.00010957,2]
[422337874,1778845839000,-842.868552,0.00010957,2]
[422337866,1778845839000,-343.49296936,0.00010858,2]
[422337855,1778845839000,-599.60298507,0.00010574,2]
[422337863,1778845839000,-161.65638237,0.00010837,2]
[422337839,1778845839000,-300.0,8.766e-05,2]
[422337841,1778845839000,-300.0,8.766e-05,2]
[422337842,1778845839000,-300.0,8.766e-05,2]
[422337843,1778845839000,-300.0,8.766e-05,2]
[422337840,1778845839000,-300.0,8.766e-05,2]
[422337844,1778845839000,-300.0,8.766e-05,2]
[422337845,1778845839000,-0.44711434,8.766e-05,2]
[422337846,1778845839000,-299.55288566,8.766e-05,2]
[422337849,1778845839000,-300.0,8.766e-05,2]
[422337848,1778845839000,-300.0,8.766e-05,2]
[422337861,1778845839000,-189.875,0.00010798,2]
[422337850,1778845839000,-537.6845,0.00010409,2]
[422337851,1778845839000,-500.0,0.00010409,2]
[422337853,1778845839000,-578.20924308,0.00010519,2]
[422337854,1778845839000,-600.0,0.00010551,2]
[422337852,1778845839000,-557.5788265,0.00010464,2]
[422337856,1778845839000,-443.0,0.00010604,2]
[422337857,1778845839000,-621.78829552,0.00010629,2]
[422337859,1778845839000,-356.16654961,0.00010722,2]
[422337858,1778845839000,-341.44452033,0.00010684,2]
[422337867,1778845839000,-162.380719,0.00010951,2]
[422337862,1778845839000,-152.0,0.0001081,7]
[422337847,1778845839000,-300.0,8.766e-05,2]
[422337891,1778845839000,-885.0119796,0.00010957,2]
[422337915,1778845839000,-500.0,0.00010958,2]
[422337890,1778845839000,-885.0119796,0.00010957,2]
[422337918,1778845839000,-851.3,0.00010958,2]
[422337920,1778845839000,-500.0,0.00010958,2]
[422337922,1778845839000,-500.0,0.00010958,2]
[422337923,1778845839000,-500.0,0.00010958,2]
[422337924,1778845839000,-1961.82,0.00010958,2]
[422337928,1778845839000,-758.24,0.00010958,2]
[422337919,1778845839000,-500.0,0.00010958,2]
[422337921,1778845839000,-579.07,0.00010958,2]
[422337925,1778845839000,-682.84,0.00010958,2]
[422337926,1778845839000,-500.0,0.00010958,2]
[422337917,1778845839000,-500.0,0.00010958,2]
[422337927,1778845839000,-500.0,0.00010958,2]
[422337931,1778845839000,-687.15,0.00010958,2]
[422337933,1778845839000,-500.0,0.00010958,2]
[422337935,1778845839000,-500.0,0.00010958,2]
[422337934,1778845839000,-500.0,0.00010958,2]
[422337932,1778845839000,-500.0,0.00010958,2]
[422337936,1778845839000,-761.77,0.00010958,2]
[422337939,1778845839000,-500.0,0.00010958,2]
[422337937,1778845839000,-500.0,0.00010958,2]
[422337938,1778845839000,-500.0,0.00010958,2]
[422337888,1778845839000,-885.0119796,0.00010957,2]
[422337929,1778845839000,-1165.41,0.00010958,2]
[422337911,1778845839000,-607.29,0.00010958,2]
[422337930,1778845839000,-500.0,0.00010958,2]
[422337910,1778845839000,-617.17,0.00010958,2]
[422337913,1778845839000,-500.0,0.00010958,2]
[422337887,1778845839000,-885.0119796,0.00010957,2]
[422337892,1778845839000,-885.0119796,0.00010957,2]
[422337893,1778845839000,-885.0119796,0.00010957,2]
[422337894,1778845839000,-885.0119796,0.00010957,2]
[422337896,1778845839000,-56.12278777,0.00010957,2]
[422337897,1778845839000,-885.0119796,0.00010957,2]
[422337895,1778845839000,-828.88919183,0.00010957,2]
[422337898,1778845839000,-500.0,0.00010957,2]
[422337900,1778845839000,-622.59493111,0.00010958,2]
[422337899,1778845839000,-556.02,0.00010958,2]
[422337901,1778845839000,-326.14180892,0.00010958,2]
[422337902,1778845839000,-500.0,0.00010958,2]
[422337912,1778845839000,-500.0,0.00010958,2]
[422337903,1778845839000,-500.0,0.00010958,2]
[422337909,1778845839000,-500.0,0.00010958,2]
[422337916,1778845839000,-500.0,0.00010958,2]
[422337908,1778845839000,-1535.24,0.00010958,2]
[422337914,1778845839000,-500.0,0.00010958,2]
[422337906,1778845839000,-500.0,0.00010958,2]
[422337907,1778845839000,-692.24,0.00010958,2]
[422337905,1778845839000,-168.39108686,0.00010958,2]
[422337904,1778845839000,-500.0,0.00010958,2]
[422337961,1778845840000,-500.0,0.00010958,2]
[422337959,1778845840000,-500.0,0.00010958,2]
[422337960,1778845840000,-1480.92,0.00010958,2]
[422337956,1778845840000,-929.7,0.00010958,2]
[422337958,1778845840000,-500.0,0.00010958,2]
[422337963,1778845840000,-2105.04,0.00010958,2]
[422337976,1778845840000,-191.20018121,0.00010958,2]
[422337962,1778845840000,-1972.61,0.00010958,2]
[422337965,1778845840000,-616.03,0.00010958,2]
[422337967,1778845840000,-500.0,0.00010958,2]
[422337966,1778845840000,-500.0,0.00010958,2]
[422337955,1778845840000,-1340.04,0.00010958,2]
[422337969,1778845840000,-500.0,0.00010958,2]
[422337964,1778845840000,-500.0,0.00010958,2]
[422337957,1778845840000,-550.97,0.00010958,2]
[422337945,1778845840000,-1751.72,0.00010958,2]
[422337950,1778845840000,-513.56952255,0.00010958,2]
[422337951,1778845840000,-500.0,0.00010958,2]
[422337952,1778845840000,-500.0,0.00010958,2]
[422337947,1778845840000,-500.0,0.00010958,2]
[422337953,1778845840000,-899.17,0.00010958,2]
[422337948,1778845840000,-1934.81,0.00010958,2]
[422337944,1778845840000,-779.69,0.00010958,2]
[422337943,1778845840000,-602.12,0.00010958,2]
[422337942,1778845840000,-349.17689909,0.00010958,2]
[422337946,1778845840000,-500.0,0.00010958,2]
[422337949,1778845840000,-767.26,0.00010958,2]
[422337941,1778845840000,-500.0,0.00010958,2]
[422337940,1778845840000,-179.86297879,0.00010958,2]
[422337968,1778845840000,-500.0,0.00010958,2]
[422337954,1778845840000,-500.0,0.00010958,2]
[422337975,1778845840000,-509.59167753,0.00010958,2]
[422337996,1778845840000,-871.85,0.00010958,2]
[422337973,1778845840000,-889.43,0.00010958,2]
[422338007,1778845840000,-3613.8654225,0.00010958,2]
[422338004,1778845840000,-1254.44,0.00010958,2]
[422338006,1778845840000,-1366.65,0.00010958,2]
[422338005,1778845840000,-1721.35,0.00010958,2]
[422338003,1778845840000,-500.0,0.00010958,2]
[422338000,1778845840000,-7898.79,0.00010958,2]
[422337998,1778845840000,-500.0,0.00010958,2]
[422337999,1778845840000,-1033.66,0.00010958,2]
[422338002,1778845840000,-649.56,0.00010958,2]
[422337992,1778845840000,-746.82,0.00010958,2]
[422337995,1778845840000,-1759.79,0.00010958,2]
[422337970,1778845840000,-500.0,0.00010958,2]
[422338001,1778845840000,-1764.36,0.00010958,2]
[422337997,1778845840000,-500.0,0.00010958,2]
[422337993,1778845840000,-205.07085794,0.00010958,2]
[422337994,1778845840000,-914.03,0.00010958,2]
[422337987,1778845840000,-1540.61,0.00010958,2]
[422337972,1778845840000,-4249.63,0.00010958,2]
[422337971,1778845840000,-500.0,0.00010958,2]
[422337991,1778845840000,-500.0,0.00010958,2]
[422337977,1778845840000,-308.79981879,0.00010958,2]
[422337979,1778845840000,-500.0,0.00010958,2]
[422337978,1778845840000,-829.75,0.00010958,2]
[422337989,1778845840000,-2479.17,0.00010958,2]
[422337974,1778845840000,-507.98,0.00010958,2]
[422337983,1778845840000,-500.0,0.00010958,2]
[422337981,1778845840000,-500.0,0.00010958,2]
[422337988,1778845840000,-500.0,0.00010958,2]
[422337986,1778845840000,-500.0,0.00010958,2]
[422337985,1778845840000,-500.0,0.00010958,2]
[422337984,1778845840000,-601.57,0.00010958,2]
[422337990,1778845840000,-500.0,0.00010958,2]
[422338018,1778845844000,-4313.02,0.00010958,2]
[422338029,1778845844000,-500.0,0.00010958,2]
[422338019,1778845844000,-500.0,0.00010958,2]
[422338017,1778845844000,-500.0,0.00010958,2]
[422338013,1778845844000,-296.91226441,0.00010958,2]
[422338014,1778845844000,-264.32773559,0.00010958,2]
[422338016,1778845844000,-500.0,0.00010958,2]
[422338012,1778845844000,-5.70913558,0.00010958,2]
[422338021,1778845844000,-1093.95,0.00010958,2]
[422338015,1778845844000,-500.0,0.00010958,2]
[422338020,1778845844000,-500.0,0.00010958,2]
[422338011,1778845844000,-401.55544192,0.00010958,2]
[422338025,1778845844000,-726.79171501,0.00010958,2]
[422338023,1778845844000,-717.07,0.00010958,2]
[422338031,1778845844000,-1154.75196577,0.00010958,2]
[422338035,1778845844000,-3941.33287968,0.00010958,2]
[422338034,1778845844000,-605.77,0.00010958,2]
[422338030,1778845844000,-500.0,0.00010958,2]
[422338033,1778845844000,-500.0,0.00010958,2]
[422338027,1778845844000,-27.999298,0.00010958,2]
[422338024,1778845844000,-500.0,0.00010958,2]
[422338026,1778845844000,-1335.28898699,0.00010958,2]
[422338028,1778845844000,-500.0,0.00010958,2]
[422338022,1778845844000,-865.5,0.00010958,2]
[422338032,1778845844000,-385.48803423,0.00010958,2]
[422338041,1778845846000,-500.0,0.00010958,2]
[422338037,1778845846000,-6137.53712032,0.00010958,2]
[422338038,1778845846000,-554.93125242,0.00010958,2]
[422338040,1778845846000,-500.0,0.00010958,2]
[422338043,1778845846000,-500.0,0.00010958,2]
[422338039,1778845846000,-1322.61874758,0.00010958,2]
[422338044,1778845846000,-500.0,0.00010958,2]
[422338045,1778845846000,-1149.71,0.00010958,2]
[422338048,1778845846000,-500.0,0.00010958,2]
[422338046,1778845846000,-500.0,0.00010958,2]
[422338042,1778845846000,-500.0,0.00010958,2]
[422338047,1778845846000,-500.0,0.00010958,2]
[422338071,1778845847000,-2530.38,0.00010958,2]
[422338070,1778845847000,-665.88,0.00010958,2]
[422338068,1778845847000,-1356.25,0.00010958,2]
[422338072,1778845847000,-1135.64,0.00010958,2]
[422338076,1778845847000,-500.0,0.00010958,2]
[422338074,1778845847000,-637.15,0.00010958,2]
[422338075,1778845847000,-500.0,0.00010958,2]
[422338073,1778845847000,-2116.84,0.00010958,2]
[422338081,1778845847000,-509.78114512,0.00010958,2]
[422338080,1778845847000,-1259.01,0.00010958,2]
[422338082,1778845847000,-800.26,0.00010958,2]
[422338086,1778845847000,-4129.05,0.00010958,2]
[422338083,1778845847000,-2703.65,0.00010958,2]
[422338085,1778845847000,-500.0,0.00010958,2]
[422338087,1778845847000,-500.0,0.00010958,2]
[422338069,1778845847000,-500.0,0.00010958,2]
[422338078,1778845847000,-1316.21,0.00010958,2]
[422338066,1778845847000,-500.0,0.00010958,2]
[422338055,1778845847000,-500.0,0.00010958,2]
[422338067,1778845847000,-500.0,0.00010958,2]
[422338054,1778845847000,-612.83,0.00010958,2]
[422338053,1778845847000,-1913.22,0.00010958,2]
[422338052,1778845847000,-1019.51,0.00010958,2]
[422338050,1778845847000,-699.89,0.00010958,2]
[422338049,1778845847000,-500.0,0.00010958,2]
[422338051,1778845847000,-500.0,0.00010958,2]
[422338056,1778845847000,-500.0,0.00010958,2]
[422338088,1778845847000,-564.95,0.00010958,2]
[422338058,1778845847000,-504.46,0.00010958,2]
[422338065,1778845847000,-861.05,0.00010958,2]
[422338059,1778845847000,-500.0,0.00010958,2]
[422338064,1778845847000,-2233.43,0.00010958,2]
[422338060,1778845847000,-500.0,0.00010958,2]
[422338057,1778845847000,-500.0,0.00010958,2]
[422338061,1778845847000,-500.0,0.00010958,2]
[422338062,1778845847000,-4449.99,0.00010958,2]
[422338063,1778845847000,-561.38,0.00010958,2]
[422338077,1778845847000,-500.0,0.00010958,2]
[422338084,1778845847000,-500.0,0.00010958,2]
[422338079,1778845847000,-3511.85,0.00010958,2]
[422338092,1778845847000,-624.91,0.00010958,2]
[422338111,1778845847000,-787.57,0.00010958,2]
[422338110,1778845847000,-4591.46,0.00010958,2]
[422338114,1778845847000,-547.08,0.00010958,2]
[422338115,1778845847000,-500.0,0.00010958,2]
[422338118,1778845847000,-500.0,0.00010958,2]
[422338116,1778845847000,-3012.43,0.00010958,2]
[422338117,1778845847000,-500.0,0.00010958,2]
[422338120,1778845847000,-237.83244419,0.00010958,2]
[422338123,1778845847000,-500.0,0.00010958,2]
[422338124,1778845847000,-500.0,0.00010958,2]
[422338122,1778845847000,-500.0,0.00010958,2]
[422338121,1778845847000,-500.0,0.00010958,2]
[422338127,1778845847000,-2204.41425439,0.00010958,2]
[422338126,1778845847000,-776.33574561,0.00010958,2]
[422338128,1778845847000,-15499.10981352,0.00010958,2]
[422338125,1778845847000,-861.07,0.00010958,2]
[422338090,1778845847000,-500.0,0.00010958,2]
[422338119,1778845847000,-3172.97755581,0.00010958,2]
[422338112,1778845847000,-6775.87,0.00010958,2]
[422338113,1778845847000,-500.0,0.00010958,2]
[422338108,1778845847000,-1504.45,0.00010958,2]
[422338091,1778845847000,-500.0,0.00010958,2]
[422338093,1778845847000,-500.0,0.00010958,2]
[422338097,1778845847000,-500.0,0.00010958,2]
[422338096,1778845847000,-4487.7,0.00010958,2]
[422338095,1778845847000,-500.0,0.00010958,2]
[422338098,1778845847000,-500.0,0.00010958,2]
[422338099,1778845847000,-500.0,0.00010958,2]
[422338094,1778845847000,-1240.43,0.00010958,2]
[422338100,1778845847000,-840.28,0.00010958,2]
[422338089,1778845847000,-500.0,0.00010958,2]
[422338104,1778845847000,-500.0,0.00010958,2]
[422338101,1778845847000,-883.67,0.00010958,2]
[422338103,1778845847000,-550.18,0.00010958,2]
[422338106,1778845847000,-6892.73,0.00010958,2]
[422338105,1778845847000,-820.41,0.00010958,2]
[422338107,1778845847000,-2145.8,0.00010958,2]
[422338102,1778845847000,-500.0,0.00010958,2]
[422338109,1778845847000,-500.0,0.00010958,2]
[422338135,1778846493000,-4050.76982253,9.382e-05,2]
[422338144,1778846913000,159.608312,4.681e-05,2]
[422338158,1778847033000,-3921.68350359,8.571e-05,2]
[422338185,1778847033000,-207.0643829,9.587e-05,2]
[422338175,1778847033000,-300.0,8.921e-05,2]
[422338170,1778847033000,-1200.0,8.832e-05,2]
[422338172,1778847033000,-300.0,8.921e-05,2]
[422338182,1778847033000,-1413.9981372,9.573e-05,2]
[422338168,1778847033000,-300.0,8.832e-05,2]
[422338179,1778847033000,-300.0,8.921e-05,2]
[422338164,1778847033000,-13.74116138,8.745e-05,2]
[422338162,1778847033000,-175.32322243,8.745e-05,2]
[422338155,1778847033000,-268.48015509,8.571e-05,2]
[422338160,1778847033000,-5000.0,8.658e-05,2]
[422338148,1778847033000,-809.83634132,8.571e-05,2]
[422338188,1778847033000,-420.0,9.715e-05,2]
[422338166,1778847033000,-296.98381224,8.789e-05,2]
[422338191,1778847033000,-1680.0,9.715e-05,2]
[422338226,1778847033000,-599.60298508,0.00010699,2]
[422338194,1778847033000,-301.0,9.813e-05,2]
[422338228,1778847033000,-4261.12212095,0.000107,2]
[422338222,1778847033000,-204.45353009,0.00010683,2]
[422338218,1778847033000,-151.5,0.00010683,2]
[422338200,1778847033000,-537.6845,0.00010534,2]
[422338207,1778847033000,-185.0,0.00010578,2]
[422338209,1778847033000,-557.5788265,0.00010589,2]
[422338220,1778847033000,-151.5,0.00010683,2]
[422338224,1778847033000,-297.2682,0.00010683,2]
[422338215,1778847033000,-179.391989,0.00010657,2]
[422338216,1778847033000,-151.5,0.00010683,2]
[422338213,1778847033000,-578.20924308,0.00010644,2]
[422338206,1778847033000,-160.0,0.00010538,2]
[422338204,1778847033000,-160.0,0.00010537,2]
[422338201,1778847033000,-500.0,0.00010534,2]
[422338197,1778847033000,-301.0,9.813e-05,2]
[422338211,1778847033000,-161.65638237,0.00010636,2]
[422338318,1778847038000,-9762.08232708,0.00010757,2]
[422338315,1778847038000,-91442.51808107,0.00010756,2]
[422338316,1778847038000,-35837.32700165,0.00010757,2]
[422338312,1778847038000,-5000.0,0.00010593,2]
[422338314,1778847038000,-81500.38932574,0.00010756,2]
[422338313,1778847038000,-5244.88030895,0.000107,2]
[422338320,1778847038000,-503.5364,0.000108,2]
[422338317,1778847038000,-28134.964952,0.00010757,2]
[422338319,1778847038000,-350.44089844,0.00010789,2]
[422338330,1778847038000,-12072.89683081,0.00010958,2]
[422338331,1778847038000,-1751.73676825,0.00010958,2]